bitfinex-derivatives/quotes_BTCF0:USTF0_20250926
["timestamp","ask_amount","ask_price","bid_price","bid_amount"]
[1758880338997,1.32645086,109610.0,109600.0,0.1278117]
[1758880340589,1.32645086,109610.0,109600.0,0.03665]
[1758880342903,1.32641086,109610.0,109600.0,0.03665]
[1758880344106,0.47473086,109610.0,109600.0,0.1278116]
[1758880344404,1.32637086,109610.0,109600.0,0.1278116]
[1758880348605,1.32637086,109610.0,109600.0,0.1045716]
[1758880350609,1.32637086,109610.0,109600.0,0.1271116]
[1758880351611,1.32629086,109610.0,109600.0,0.1271116]
[1758880354606,1.23513806,109610.0,109590.0,0.1270073]
[1758880354812,0.4519636,109600.0,109590.0,0.1270073]
[1758880355111,0.47474166,109600.0,109590.0,0.1270073]
[1758880355810,0.47474166,109600.0,109590.0,0.1320073]
[1758880356405,0.38357806,109600.0,109590.0,0.1320073]
[1758880357524,0.02277806,109600.0,109590.0,0.1320073]
[1758880357718,1.3263002,109610.0,109600.0,0.1272537]
[1758880358020,1.32630018,109610.0,109600.0,0.1272537]
[1758880362314,0.38357958,109610.0,109600.0,0.1272537]
[1758880362517,1.23501958,109610.0,109600.0,0.1272537]
[1758880363019,0.38357958,109610.0,109600.0,0.1272537]
[1758880363224,1.23501958,109610.0,109600.0,0.1272537]
[1758880363423,0.87421958,109610.0,109600.0,0.1272537]
[1758880365624,1.32617228,109610.0,109600.0,0.1272537]
[1758880367120,1.32617228,109610.0,109600.0,0.1322537]
[1758880368927,1.32609228,109610.0,109600.0,0.1322537]
[1758880380734,1.32608203,109610.0,109600.0,0.1322537]
[1758880381227,1.32608203,109610.0,109600.0,0.005]
[1758880382132,1.32608203,109610.0,109600.0,0.1309211]
[1758880385149,1.32608203,109610.0,109600.0,0.1259211]
[1758880386246,1.32608203,109610.0,109600.0,0.01288]
[1758880386538,1.32608203,109610.0,109600.0,0.1259511]
[1758880387341,0.0911611,109600.0,109590.0,0.03521]
[1758880387540,0.47473043,109600.0,109590.0,0.1263794]
[1758880389538,0.47473043,109600.0,109590.0,0.1313794]
[1758880390039,0.47473043,109600.0,109590.0,0.1263794]
[1758880390941,0.47472068,109600.0,109590.0,0.1263794]
[1758880396946,0.02275958,109600.0,109590.0,0.1263794]
[1758880397244,0.11392068,109600.0,109590.0,0.1263794]
[1758880399744,0.11392068,109600.0,109590.0,0.03521]
[1758880402947,0.11392068,109600.0,109590.0,0.1263797]
[1758880403246,0.02275958,109600.0,109590.0,0.4871797]
[1758880403448,0.87351958,109600.0,109590.0,0.1263797]
[1758880405244,0.87351958,109600.0,109590.0,0.4871797]
[1758880405546,0.87351958,109600.0,109590.0,0.1263797]
[1758880406637,0.87351958,109600.0,109590.0,0.4871797]
[1758880407037,0.96468068,109600.0,109590.0,0.1263797]
[1758880408049,0.87351958,109600.0,109590.0,0.1263797]
[1758880409852,0.96468068,109600.0,109590.0,0.1263797]
[1758880412758,0.96468068,109600.0,109590.0,0.1313797]
[1758880415061,0.87351958,109600.0,109590.0,0.1313797]
[1758880415457,0.87351958,109600.0,109590.0,0.4921797]
[1758880417962,0.87315958,109600.0,109590.0,0.4921797]
[1758880418259,0.02275958,109600.0,109590.0,0.4921797]
[1758880418460,0.4519576,109610.0,109600.0,0.125941]
[1758880418461,1.19356,109610.0,109600.0,0.125941]
[1758880418762,0.87314156,109610.0,109600.0,0.125941]
[1758880418951,0.02278156,109610.0,109600.0,0.125941]
[1758880419160,0.3608,109620.0,109610.0,0.1259327]
[1758880419367,0.02278396,109620.0,109610.0,0.1259327]
[1758880419552,0.4519339,109640.0,109630.0,0.01285]
[1758880419756,0.4519339,109640.0,109630.0,0.03478]
[1758880419757,1.32503211,109640.0,109630.0,0.03478]
[1758880420754,1.32503211,109640.0,109630.0,0.1259164]
[1758880421463,1.3964965,109640.0,109630.0,0.1259164]
[1758880422671,1.0356965,109640.0,109630.0,0.1259164]
[1758880422856,0.02277821,109640.0,109630.0,0.1259164]
[1758880423160,0.9414081,109640.0,109630.0,0.1259164]
[1758880424063,0.0911281,109640.0,109630.0,0.13515264]
[1758880424260,0.9412881,109640.0,109630.0,0.13515264]
[1758880425461,0.85016,109640.0,109630.0,0.13515264]
[1758880426364,0.9412881,109640.0,109630.0,0.13515264]
[1758880427164,0.9412881,109640.0,109630.0,0.1259164]
[1758880428758,0.9412881,109640.0,109630.0,0.03478]
[1758880428959,0.9410481,109640.0,109630.0,0.03478]
[1758880429770,1.3018481,109640.0,109630.0,0.03478]
[1758880430664,1.3018481,109640.0,109620.0,0.1039939]
[1758880430872,1.3018481,109640.0,109620.0,0.1259239]
[1758880431066,1.3018481,109640.0,109620.0,0.21713564]
[1758880431571,1.3018481,109640.0,109630.0,0.01285]
[1758880433568,1.3018481,109640.0,109630.0,0.03478]
[1758880434167,1.32455072,109640.0,109630.0,0.01285]
[1758880434376,1.32455072,109640.0,109630.0,0.1259164]
[1758880436969,0.0911364,109630.0,109620.0,0.1264397]
[1758880437380,0.0911364,109630.0,109620.0,0.21765144]
[1758880437682,0.0911364,109630.0,109620.0,0.19520144]
[1758880437874,0.0911364,109630.0,109610.0,0.20782184]
[1758880437875,0.4519364,109630.0,109610.0,0.20782184]
[1758880438074,0.47303481,109630.0,109610.0,0.1984787]
[1758880438374,0.8496,109620.0,109610.0,0.30830055]
[1758880439172,0.8496,109620.0,109610.0,0.31730837]
[1758880439578,0.8496,109620.0,109610.0,0.29870658]
[1758880440382,0.8496,109620.0,109610.0,0.30370658]
[1758880440572,0.9407447,109620.0,109610.0,0.30370658]
[1758880440771,1.3015447,109620.0,109610.0,0.30370658]
[1758880441081,1.3015447,109620.0,109610.0,0.0403]
[1758880441275,1.3015447,109620.0,109610.0,0.1314529]
[1758880442078,0.84952,109620.0,109610.0,0.1314529]
[1758880442275,0.9406666,109620.0,109610.0,0.14075038]
[1758880442579,1.3014666,109620.0,109610.0,0.04959748]
[1758880443387,1.3014666,109620.0,109610.0,0.04459748]
[1758880443675,1.3014666,109620.0,109610.0,0.0353]
[1758880443875,0.0911549,109610.0,109600.0,0.10346301]
[1758880444068,0.4519549,109610.0,109600.0,0.12575301]
[1758880444276,0.4469549,109610.0,109600.0,0.2169814]
[1758880444777,0.4469549,109610.0,109600.0,0.308143]
[1758880444982,1.3014701,109620.0,109610.0,0.01361]
[1758880445185,1.32420069,109620.0,109610.0,0.0359]
[1758880447284,1.32420069,109620.0,109610.0,0.1270529]
[1758880450282,1.32420069,109620.0,109610.0,0.1280529]
[1758880451187,1.32420069,109620.0,109610.0,0.1270529]
[1758880451885,1.32420069,109620.0,109610.0,0.1280529]
[1758880452491,1.32420069,109620.0,109610.0,0.1280531]
[1758880452784,1.32420069,109620.0,109610.0,0.1057631]
[1758880453081,1.32420069,109620.0,109610.0,0.1280531]
[1758880453286,1.32420069,109620.0,109610.0,0.1057631]
[1758880453682,1.32420069,109620.0,109610.0,0.01461]
[1758880454982,1.32420069,109620.0,109610.0,0.01361]
[1758880456488,1.32420069,109620.0,109600.0,0.1262958]
[1758880457286,1.32420069,109620.0,109610.0,0.01361]
[1758880458294,1.32420069,109620.0,109610.0,0.0359]
[1758880459496,1.32420069,109620.0,109610.0,0.01361]
[1758880459797,0.0911522,109610.0,109600.0,0.14595977]
[1758880459998,0.4519522,109610.0,109600.0,0.14495977]
[1758880461406,0.4519522,109610.0,109600.0,0.14595977]
[1758880467315,0.47474923,109610.0,109600.0,0.14595977]
[1758880468514,0.4519522,109610.0,109600.0,0.14595977]
[1758880469417,0.47475957,109610.0,109600.0,0.14595977]
[1758880471118,1.32359957,109610.0,109600.0,0.14595977]
[1758880473917,1.32359957,109610.0,109600.0,0.05480397]
[1758880478127,1.32359957,109610.0,109600.0,0.14596457]
[1758880479625,1.32359957,109610.0,109600.0,0.05480397]
[1758880481224,1.33264405,109610.0,109600.0,0.05480397]
[1758880481732,1.32359957,109610.0,109600.0,0.05480397]
[1758880482122,1.32359957,109610.0,109600.0,0.01966397]
[1758880482729,1.72359957,109610.0,109600.0,0.01966397]
[1758880484123,1.72359957,109610.0,109600.0,0.01866397]
[1758880484523,0.0911606,109600.0,109590.0,0.03683]
[1758880484731,0.47476797,109600.0,109590.0,0.03683]
[1758880485534,0.47476797,109600.0,109590.0,0.01367]
[1758880485731,0.47476797,109600.0,109590.0,0.03683]
[1758880486442,0.47476797,109600.0,109590.0,0.1279989]
[1758880487131,0.11396797,109600.0,109590.0,0.1279989]
[1758880488936,0.11396797,109600.0,109590.0,0.1289989]
[1758880490234,0.0911606,109600.0,109590.0,0.1289989]
[1758880492833,0.11415923,109600.0,109590.0,0.1289989]
[1758880495442,0.0911606,109600.0,109590.0,0.1289989]
[1758880496231,0.11415753,109600.0,109590.0,0.1289989]
[1758880497845,0.02299693,109600.0,109590.0,0.1289989]
[1758880499246,0.87115693,109600.0,109590.0,0.1289989]
[1758880500743,0.96231743,109600.0,109590.0,0.1289989]
[1758880503745,0.96231743,109600.0,109590.0,0.1299989]
[1758880504945,0.96231743,109600.0,109590.0,0.03883]
[1758880505146,1.32311743,109600.0,109590.0,0.03883]
[1758880505343,1.32311743,109600.0,109590.0,0.01467]
[1758880505548,1.32311743,109600.0,109590.0,0.001]
[1758880505742,1.72311743,109600.0,109590.0,0.001]
[1758880508248,1.72311743,109600.0,109580.0,0.1273611]
[1758880508440,1.32311743,109600.0,109580.0,0.1273611]
[1758880509451,1.32311743,109600.0,109580.0,0.1283611]
[1758880511146,1.32311743,109600.0,109580.0,0.1343611]
[1758880512052,1.32311743,109600.0,109580.0,0.1353611]
[1758880512751,1.32311743,109600.0,109580.0,0.1343611]
[1758880512953,1.32311743,109600.0,109580.0,0.1353611]
[1758880519147,1.32311743,109600.0,109580.0,0.1363611]
[1758880519756,1.32311743,109600.0,109580.0,0.1353611]
[1758880520258,1.32311743,109600.0,109590.0,0.0911689]
[1758880521661,0.0901689,109590.0,109580.0,0.1273618]
[1758880522059,0.47410444,109590.0,109580.0,0.1273618]
[1758880522960,0.47410444,109590.0,109580.0,0.1058418]
[1758880523163,0.47410444,109590.0,109580.0,0.1283618]
[1758880523459,0.46023846,109590.0,109580.0,0.1283618]
[1758880524070,0.4509689,109590.0,109580.0,0.1283618]
[1758880524367,0.47410194,109590.0,109580.0,0.1283618]
[1758880527169,0.48327429,109590.0,109580.0,0.1283618]
[1758880527870,0.47410194,109590.0,109580.0,0.1283618]
[1758880529372,0.48320481,109590.0,109580.0,0.1283618]
[1758880529773,0.48320481,109590.0,109580.0,0.03719]
[1758880532074,0.48320481,109590.0,109580.0,0.1283674]
[1758880533063,0.47410194,109590.0,109580.0,0.1283674]
[1758880534674,0.02313304,109590.0,109580.0,0.1283674]
[1758880534869,1.32325848,109600.0,109590.0,0.091169]
[1758880535675,1.32325848,109600.0,109590.0,0.127849]
[1758880536676,1.32325848,109600.0,109590.0,0.104949]
[1758880536875,1.32325848,109600.0,109590.0,0.01378]
[1758880543178,0.0911692,109590.0,109580.0,0.1277419]
[1758880543476,0.11430388,109590.0,109580.0,0.1277419]
[1758880543676,0.47510388,109590.0,109580.0,0.1277419]
[1758880555789,0.11430388,109590.0,109580.0,0.1277419]
[1758880558495,0.02313468,109590.0,109580.0,0.1277419]
[1758880558686,0.091169,109590.0,109580.0,0.1277419]
[1758880558886,0.11430368,109590.0,109580.0,0.1277419]
[1758880561102,0.47510368,109590.0,109580.0,0.1277419]
[1758880562000,0.11430368,109590.0,109580.0,0.1277419]
[1758880563004,0.47510368,109590.0,109580.0,0.1277419]
[1758880568505,0.11430368,109590.0,109580.0,0.1277419]
[1758880570402,0.02313468,109590.0,109580.0,0.61899526]
[1758880570599,0.86917468,109590.0,109580.0,0.97979526]
[1758880570803,0.96034388,109590.0,109580.0,0.97979526]
[1758880571098,0.96034388,109590.0,109580.0,0.61900086]
[1758880571302,0.96035235,109590.0,109580.0,0.61900086]
[1758880572410,0.96035235,109590.0,109580.0,0.62000086]
[1758880573112,0.96035235,109590.0,109580.0,0.61900086]
[1758880573303,0.96035235,109590.0,109580.0,0.21900086]
[1758880573503,0.96035235,109590.0,109580.0,0.22500086]
[1758880574011,0.96035235,109590.0,109580.0,0.21900086]
[1758880577109,0.96035235,109590.0,109580.0,0.1277475]
[1758880577309,0.96034508,109590.0,109580.0,0.1277475]
[1758880577604,1.34273844,109590.0,109580.0,0.03657]
[1758880577910,1.34273844,109590.0,109580.0,0.01367]
[1758880578307,0.0911774,109580.0,109570.0,0.03604]
[1758880578512,0.47511328,109580.0,109570.0,0.03604]
[1758880578912,0.47511328,109580.0,109570.0,0.01361]
[1758880579507,0.47511328,109580.0,109570.0,0.01461]
[1758880580711,0.47511328,109580.0,109570.0,0.02061]
[1758880580914,0.48439962,109580.0,109570.0,0.04304]
[1758880581217,0.47511328,109580.0,109570.0,0.007]
[1758880582718,0.48407691,109580.0,109570.0,0.007]
[1758880584009,0.48407691,109580.0,109570.0,0.0981857]
[1758880584213,0.47511328,109580.0,109570.0,0.0981857]
[1758880584615,0.38393588,109580.0,109570.0,0.1335957]
[1758880584816,1.22953588,109580.0,109570.0,0.1335957]
[1758880586521,1.32071318,109580.0,109570.0,0.1335957]
[1758880593426,1.32071318,109580.0,109570.0,0.04241]
[1758880594228,1.32071318,109580.0,109570.0,0.04237]
[1758880606237,1.32071318,109580.0,109570.0,0.1335557]
[1758880609049,1.32071318,109580.0,109570.0,0.1334357]
[1758880619147,0.02313588,109580.0,109570.0,0.8942357]
[1758880619353,0.86773588,109580.0,109570.0,0.8942357]
[1758880619554,0.4519659,109600.0,109590.0,0.01285]
[1758880619756,1.31999314,109600.0,109590.0,0.1271691]
[1758880620957,0.47539314,109600.0,109590.0,0.1271691]
[1758880621152,1.31999314,109600.0,109590.0,0.1271691]
[1758880621361,1.31999314,109600.0,109590.0,0.036]
[1758880621559,0.0911688,109590.0,109580.0,0.036]
[1758880621758,0.11459604,109590.0,109580.0,0.036]
[1758880621960,0.11459604,109590.0,109580.0,0.21842233]
[1758880626861,0.11459604,109590.0,109580.0,0.21842203]
[1758880627066,0.47539604,109590.0,109580.0,0.127177]
[1758880629060,0.47539604,109590.0,109580.0,0.036]
[1758880629263,0.49702161,109590.0,109580.0,0.1271774]
[1758880636173,0.47539604,109590.0,109580.0,0.1271774]
[1758880639174,0.47539604,109590.0,109580.0,0.1271374]
[1758880644180,0.0911773,109580.0,109570.0,0.126314]
[1758880644376,0.4519773,109580.0,109570.0,0.126314]
[1758880644984,0.0911772,109580.0,109570.0,0.126314]
[1758880645382,0.0911772,109580.0,109570.0,0.127314]
[1758880646283,0.9349772,109580.0,109570.0,0.127314]
[1758880646984,0.9349772,109580.0,109570.0,0.133314]
[1758880648181,1.2957772,109580.0,109570.0,0.133314]
[1758880649475,0.9349772,109580.0,109570.0,0.133314]
[1758880649683,1.2957772,109580.0,109570.0,0.133314]
[1758880650683,0.9349772,109580.0,109570.0,0.133314]
[1758880651677,1.2957772,109580.0,109570.0,0.133314]
[1758880651976,0.9349772,109580.0,109570.0,0.133314]
[1758880652477,1.2957772,109580.0,109570.0,0.133314]
[1758880653778,0.9349772,109580.0,109570.0,0.133314]
[1758880654082,1.2957772,109580.0,109570.0,0.133314]
[1758880654282,1.2957772,109580.0,109570.0,0.133274]
[1758880654684,0.9349772,109580.0,109570.0,0.133274]
[1758880655982,0.9349772,109580.0,109570.0,0.494074]
[1758880656184,0.8438,109580.0,109570.0,0.494074]
[1758880656586,0.86722166,109580.0,109570.0,0.494074]
[1758880658789,0.95839896,109580.0,109570.0,0.494074]
[1758880662985,0.86722166,109580.0,109570.0,0.494074]
[1758880663487,0.86722166,109580.0,109570.0,0.488074]
[1758880663989,0.86722166,109580.0,109570.0,0.487074]
[1758880664183,0.86722166,109580.0,109570.0,0.494074]
[1758880664784,0.86722166,109580.0,109570.0,0.493074]
[1758880665087,0.95839906,109580.0,109570.0,0.494074]
[1758880666283,0.95839906,109580.0,109570.0,0.133274]
[1758880666493,0.9349774,109580.0,109570.0,0.133274]
[1758880668696,0.8438,109580.0,109570.0,0.133274]
[1758880676400,0.4519745,109590.0,109580.0,0.0911772]
[1758880676593,1.31839643,109590.0,109580.0,0.1265772]
[1758880686309,0.47539643,109590.0,109580.0,0.1265772]
[1758880686609,1.31819643,109590.0,109580.0,0.1265772]
[1758880687616,0.47539643,109590.0,109580.0,0.1265772]
[1758880687908,1.31807643,109590.0,109580.0,0.1265772]
[1758880689018,1.31803643,109590.0,109580.0,0.1265772]
[1758880690025,1.31803643,109590.0,109580.0,0.0354]
[1758880705522,1.31803643,109590.0,109580.0,0.01317]
[1758880705718,1.31803643,109590.0,109570.0,0.05471941]
[1758880705719,0.0911774,109580.0,109570.0,0.05471941]
[1758880705919,0.47540493,109580.0,109570.0,0.05471941]
[1758880715335,0.47540493,109580.0,109570.0,0.03597]
[1758880715522,0.4966211,109580.0,109570.0,0.03597]
[1758880716235,0.47540493,109580.0,109570.0,0.03597]
[1758880716735,0.47540493,109580.0,109570.0,0.01294]
[1758880717437,0.47540493,109580.0,109570.0,0.03597]
[1758880720038,0.48457848,109580.0,109570.0,0.01294]
[1758880720233,0.0911857,109570.0,109560.0,0.10134291]
[1758880720439,1.2937057,109570.0,109560.0,0.10134291]
[1758880720638,1.2937057,109570.0,109560.0,0.03582]
[1758880722345,1.2937057,109570.0,109560.0,0.127014]
[1758880729139,1.2937057,109570.0,109560.0,0.126934]
[1758880730847,1.2937057,109570.0,109560.0,0.133934]
[1758880732546,1.2937057,109570.0,109560.0,0.132934]
[1758880733250,1.2937057,109570.0,109560.0,0.126934]
[1758880736551,1.2937057,109570.0,109560.0,0.127934]
[1758880736948,1.2937057,109570.0,109560.0,0.133934]
[1758880741950,0.84108,109580.0,109570.0,0.1272257]
[1758880742153,0.02343732,109580.0,109570.0,0.1272257]
[1758880742352,0.86447732,109580.0,109570.0,0.1272257]
[1758880742752,0.95565472,109580.0,109570.0,0.1272257]
[1758880743250,0.11461472,109580.0,109570.0,0.1272257]
[1758880743551,0.95565472,109580.0,109570.0,0.1272257]
[1758880749158,0.02343732,109580.0,109570.0,0.1272257]
[1758880749363,0.3608,109600.0,109590.0,0.1260387]
[1758880749364,0.4519646,109600.0,109590.0,0.1260387]
[1758880749666,1.21458636,109600.0,109590.0,0.1260387]
[1758880750567,1.21458636,109600.0,109590.0,0.13528267]
[1758880751061,1.31614636,109600.0,109590.0,0.13528267]
[1758880752364,0.38422176,109600.0,109590.0,0.13528267]
[1758880752774,0.44909317,109610.0,109600.0,0.0911604]
[1758880752964,0.36247794,109620.0,109610.0,0.0911521]
[1758880753266,1.20311794,109620.0,109610.0,0.1260221]
[1758880754161,1.2925841,109620.0,109610.0,0.1260221]
[1758880754766,0.3608,109620.0,109610.0,0.1260221]
[1758880754966,1.20136,109620.0,109610.0,0.1260221]
[1758880755265,1.20132,109620.0,109610.0,0.1260221]
[1758880756765,1.2924641,109620.0,109610.0,0.1260221]
[1758880758463,0.4519441,109620.0,109610.0,0.1260221]
[1758880758661,1.2923441,109620.0,109610.0,0.1260221]
[1758880759868,1.2923441,109620.0,109610.0,0.03487]
[1758880763876,1.2921441,109620.0,109610.0,0.03487]
[1758880765377,1.2921441,109620.0,109610.0,0.1260224]
[1758880767580,1.2921441,109620.0,109610.0,0.03487]
[1758880767985,0.9313441,109620.0,109610.0,0.03487]
[1758880768193,1.2921441,109620.0,109610.0,0.03487]
[1758880769387,1.2921441,109620.0,109610.0,0.1260224]
[1758880776500,1.2921441,109620.0,109610.0,0.59329435]
[1758880777296,1.31549125,109620.0,109610.0,0.59329435]
[1758880781297,0.47529125,109620.0,109610.0,0.59329435]
[1758880781601,1.31485125,109620.0,109610.0,0.59329435]
[1758880782506,1.31485125,109620.0,109610.0,0.1260224]
[1758880782799,1.31485125,109620.0,109610.0,0.59329435]
[1758880786303,1.22370715,109620.0,109610.0,0.59329435]
[1758880787396,1.31485115,109620.0,109610.0,0.59329435]
[1758880796009,0.47529115,109620.0,109610.0,0.59329435]
[1758880796309,1.31437115,109620.0,109610.0,0.59329435]
[1758880799305,1.31437115,109620.0,109610.0,0.1042524]
[1758880799810,1.31437115,109620.0,109610.0,0.57152435]
[1758880800408,1.291024,109620.0,109610.0,0.57152435]
[1758880800608,1.3144394,109620.0,109610.0,0.59481435]
[1758880801411,1.3144394,109620.0,109610.0,0.1275424]
[1758880801614,1.3144394,109620.0,109610.0,0.59481435]
[1758880803007,1.3144394,109620.0,109610.0,0.50366195]
[1758880803008,1.2232954,109620.0,109610.0,0.50366195]
[1758880803813,1.3144395,109620.0,109610.0,0.59481435]
[1758880805916,1.3144395,109620.0,109610.0,0.1275424]
[1758880806111,1.3144395,109620.0,109610.0,0.59481435]
[1758880807521,0.4753595,109620.0,109610.0,0.59481435]
[1758880807817,1.3141195,109620.0,109610.0,0.59481435]
[1758880811614,1.3141195,109620.0,109610.0,0.1275424]
[1758880811919,1.3141195,109620.0,109610.0,0.59481435]
[1758880812307,0.4753595,109620.0,109610.0,0.59481435]
[1758880812514,1.3139595,109620.0,109610.0,0.59481435]
[1758880813214,1.2905441,109620.0,109610.0,0.59481435]
[1758880813414,1.31395557,109620.0,109610.0,0.59481435]
[1758880814522,1.31387557,109620.0,109610.0,0.59481435]
[1758880814823,1.31387557,109620.0,109610.0,0.82839798]
[1758880816421,0.47535557,109620.0,109610.0,0.82839798]
[1758880816619,0.3608,109620.0,109610.0,0.1275424]
[1758880816820,0.3608,109620.0,109610.0,1.22839798]
[1758880817017,1.19928,109620.0,109610.0,1.22839798]
[1758880817825,1.2904241,109620.0,109610.0,1.22839798]
[1758880819921,1.2904241,109620.0,109610.0,0.87797019]
[1758880824227,1.2904241,109620.0,109610.0,0.5275424]
[1758880824525,1.2904241,109620.0,109610.0,0.87797019]
[1758880828422,1.2904241,109620.0,109610.0,0.78681779]
[1758880828729,1.31383474,109620.0,109610.0,0.78681779]
[1758880831627,1.31383474,109620.0,109610.0,0.03639]
[1758880831824,1.66426253,109620.0,109610.0,0.38681779]
[1758880832630,1.31383474,109620.0,109610.0,0.38681779]
[1758880834432,1.33495199,109620.0,109610.0,0.38681779]
[1758880835030,1.31383474,109620.0,109610.0,0.38681779]
[1758880835232,1.31383474,109620.0,109610.0,0.03639]
[1758880835426,1.31383474,109620.0,109600.0,0.52651379]
[1758880835427,0.0911523,109610.0,109600.0,0.38597779]
[1758880835624,0.82579517,109610.0,109600.0,0.38597779]
[1758880835930,0.47536738,109610.0,109600.0,0.73640558]
[1758880837932,0.47536738,109610.0,109600.0,0.74040558]
[1758880838531,0.47636738,109610.0,109600.0,0.74040558]
[1758880838728,0.82679517,109610.0,109600.0,0.38997779]
[1758880838933,0.47636738,109610.0,109600.0,0.38997779]
[1758880839231,0.82679517,109610.0,109600.0,0.38997779]
[1758880839536,0.82679517,109610.0,109600.0,0.36752779]
[1758880840736,0.8360981,109610.0,109600.0,0.36752779]
[1758880841929,1.30821639,109610.0,109600.0,0.004]
[1758880842832,0.9577886,109610.0,109600.0,0.004]
[1758880843039,1.30821639,109610.0,109600.0,0.004]
[1758880846139,0.0911606,109600.0,109580.0,0.36352779]
[1758880846333,1.19868,109590.0,109580.0,0.36352779]
[1758880846744,1.2898489,109590.0,109580.0,0.36352779]
[1758880847047,1.2898489,109590.0,109580.0,0.38597779]
[1758880847650,1.2898489,109590.0,109580.0,0.73640558]
[1758880848247,1.2898489,109590.0,109580.0,0.03555]
[1758880848448,1.2898489,109590.0,109580.0,0.82758258]
[1758880848853,1.2898489,109590.0,109580.0,0.83558258]
[1758880849053,1.2898489,109590.0,109580.0,0.83758258]
[1758880849351,1.2898489,109590.0,109580.0,0.136727]
[1758880849556,1.2978489,109590.0,109580.0,0.82958258]
[1758880849748,1.2978489,109590.0,109580.0,0.82758258]
[1758880849950,1.2988489,109590.0,109580.0,0.82758258]
[1758880850153,1.3197158,109590.0,109580.0,0.82758258]
[1758880852552,1.3187158,109590.0,109580.0,0.82758258]
[1758880852761,1.3107158,109590.0,109580.0,0.82958258]
[1758880853349,0.0258669,109590.0,109580.0,0.82758258]
[1758880853650,0.8637069,109590.0,109580.0,1.57801037]
[1758880854047,0.8597069,109590.0,109580.0,1.57801037]
[1758880854249,0.8597069,109590.0,109580.0,1.58001037]
[1758880854849,0.0218669,109590.0,109580.0,1.58001037]
[1758880855053,0.8596669,109590.0,109580.0,1.58001037]
[1758880855254,0.8586669,109590.0,109580.0,1.58001037]
[1758880856055,0.8586669,109590.0,109580.0,1.57801037]
[1758880856357,0.8586669,109590.0,109580.0,1.58001037]
[1758880856756,0.0208669,109590.0,109580.0,1.58001037]
[1758880856958,0.8586669,109590.0,109580.0,1.58001037]
[1758880857860,0.8586669,109590.0,109580.0,1.22958258]
[1758880861263,0.8586669,109590.0,109580.0,0.528727]
[1758880861468,0.8586669,109590.0,109580.0,1.22958258]
[1758880862154,0.8586669,109590.0,109580.0,1.58001037]
[1758880862465,0.0208669,109590.0,109580.0,2.86974373]
[1758880863564,0.0208669,109590.0,109580.0,2.87174373]
[1758880863866,0.0208669,109590.0,109580.0,2.87374373]
[1758880864864,0.112036,109590.0,109580.0,2.12331594]
[1758880865059,0.112036,109590.0,109580.0,2.12131594]
[1758880865265,0.112036,109590.0,109580.0,1.76251594]
[1758880865861,0.112036,109590.0,109580.0,0.83358258]
[1758880866666,0.112036,109590.0,109580.0,0.83158258]
[1758880867067,0.112036,109590.0,109580.0,0.82758258]
[1758880867363,1.20239689,109590.0,109570.0,0.07880291]
[1758880867572,1.64004509,109580.0,109570.0,0.36370779]
[1758880867769,1.64004509,109580.0,109570.0,0.35042779]
[1758880868067,1.2896173,109580.0,109570.0,0.36320779]
[1758880868464,1.31296997,109580.0,109560.0,0.01328]
[1758880868669,0.4519856,109570.0,109560.0,0.38552779]
[1758880868966,0.80041339,109570.0,109560.0,0.38552779]
[1758880869161,0.4499856,109570.0,109560.0,0.73595558]
[1758880869367,0.4499856,109570.0,109560.0,0.38552779]
[1758880870865,0.4499856,109570.0,109560.0,0.73595558]
[1758880871165,0.4499856,109570.0,109560.0,0.38552779]
[1758880871569,0.4549856,109570.0,109560.0,0.73595558]
[1758880871866,0.4549856,109570.0,109560.0,0.0351]
[1758880872060,0.4549856,109570.0,109560.0,0.38552779]
[1758880873966,0.0911994,109560.0,109550.0,0.38552779]
[1758880874274,1.2895994,109560.0,109550.0,0.38552779]
[1758880875868,1.2895994,109560.0,109550.0,0.47673729]
[1758880876576,1.2895994,109560.0,109550.0,0.59408765]
[1758880877270,1.2895994,109560.0,109550.0,0.1263095]
[1758880877469,1.2895994,109560.0,109550.0,0.59408765]
[1758880877671,1.2895994,109560.0,109550.0,0.1263095]
[1758880877866,1.2895994,109560.0,109550.0,0.59408765]
[1758880879272,1.2895994,109560.0,109550.0,0.59404765]
[1758880882374,1.2895994,109560.0,109550.0,0.50283815]
[1758880883880,1.2895994,109560.0,109550.0,0.01324]
[1758880884075,1.31082405,109560.0,109550.0,0.01324]
[1758880884276,1.71082405,109560.0,109550.0,0.01324]
[1758880884476,0.0912094,109550.0,109540.0,0.59359085]
[1758880884775,0.4520094,109550.0,109540.0,0.6848692]
[1758880885677,0.4520094,109550.0,109540.0,0.6858692]
[1758880885880,0.4520094,109550.0,109540.0,0.6918692]
[1758880894081,0.4520094,109550.0,109540.0,0.6918292]
[1758880894982,0.4520094,109550.0,109540.0,0.5787965]
[1758880895180,0.8520094,109550.0,109540.0,0.04153]
[1758880895484,0.87532949,109550.0,109540.0,0.04153]
[1758880897085,0.88464224,109550.0,109540.0,0.04153]
[1758880897285,0.88464224,109550.0,109540.0,0.007]
[1758880897883,1.35242039,109550.0,109540.0,0.007]
[1758880898492,0.88464224,109550.0,109540.0,0.007]
[1758880899492,0.48464224,109550.0,109540.0,0.007]
[1758880901190,0.47532949,109550.0,109540.0,0.007]
[1758880901391,0.47532949,109550.0,109540.0,0.1112077]
[1758880901591,0.47532949,109550.0,109540.0,0.1329977]
[1758880901891,0.47532949,109550.0,109540.0,0.1112077]
[1758880903189,1.31300949,109550.0,109540.0,0.1112077]
[1758880903492,1.31296949,109550.0,109540.0,0.60077585]
[1758880903689,1.31296949,109550.0,109540.0,0.1329977]
[1758880905600,1.31296949,109550.0,109540.0,0.04178]
[1758880905792,1.31296949,109550.0,109540.0,0.01999]
[1758880906186,1.31296949,109550.0,109540.0,0.1329977]
[1758880906390,1.31296949,109550.0,109540.0,0.1112077]
[1758880906589,1.31296949,109550.0,109540.0,0.1329977]
[1758880907996,1.31296949,109550.0,109540.0,0.04178]
[1758880910807,1.78074764,109550.0,109540.0,0.04178]
[1758880911108,1.31296949,109550.0,109540.0,0.04178]
[1758880913495,1.78074764,109550.0,109540.0,0.01999]
[1758880914309,1.78074764,109550.0,109540.0,0.04178]
[1758880917412,1.78074764,109550.0,109540.0,0.01999]
[1758880918709,1.78074764,109550.0,109540.0,0.04302]
[1758880921015,1.31296949,109550.0,109540.0,0.04302]
[1758880921215,1.78074764,109550.0,109540.0,0.04302]
[1758880921810,0.94310764,109550.0,109540.0,0.04302]
[1758880922010,1.31296949,109550.0,109540.0,0.1342377]
[1758880925708,1.31296949,109550.0,109540.0,0.04302]
[1758880926009,1.31296949,109550.0,109540.0,0.01999]
[1758880926315,1.78074764,109550.0,109540.0,0.01999]
[1758880928620,0.94310764,109550.0,109540.0,0.01999]
[1758880928819,1.78074764,109550.0,109540.0,0.01999]
[1758880930016,1.78074764,109550.0,109540.0,0.007]
[1758880930215,2.18074764,109550.0,109540.0,0.007]